bitfinex-derivatives/quotes_BTCF0:USTF0_20251025
["timestamp","ask_amount","ask_price","bid_price","bid_amount"]
[1761361800554,0.16982511,111110.0,111100.0,0.76807367]
[1761361802050,0.16982511,111110.0,111100.0,0.76707367]
[1761361807260,0.1477287,111110.0,111100.0,0.76707367]
[1761361810156,0.16982359,111110.0,111100.0,0.67707677]
[1761361810658,0.16982359,111110.0,111100.0,0.42043721]
[1761361810852,0.16982359,111110.0,111100.0,0.67707677]
[1761361811052,0.16982359,111110.0,111100.0,0.61234406]
[1761361813253,0.29814337,111110.0,111100.0,0.16854428]
[1761361813453,0.29814337,111110.0,111100.0,0.48398428]
[1761361813654,0.16982359,111110.0,111100.0,0.61230406]
[1761361828670,0.16982359,111110.0,111100.0,0.4839943]
[1761361841371,0.16982359,111110.0,111100.0,0.1685543]
[1761361841573,0.16982359,111110.0,111100.0,0.4839943]
[1761361843371,0.16982359,111110.0,111100.0,0.3556645]
[1761361843671,0.16982359,111110.0,111100.0,0.4839943]
[1761361843872,0.16982359,111110.0,111100.0,0.3556645]
[1761361844575,0.16982359,111110.0,111100.0,0.4839943]
[1761361847378,0.29815339,111110.0,111090.0,0.06473271]
[1761361847576,0.1476314,111070.0,111060.0,0.23420956]
[1761361847772,0.1476314,111070.0,111060.0,0.04006604]
[1761361847773,0.1685847,111070.0,111060.0,0.04006604]
[1761361848763,0.1685847,111070.0,111060.0,0.04306604]
[1761361849165,0.14648981,111070.0,111060.0,0.04306604]
[1761361857886,0.17668981,111070.0,111060.0,0.04306604]
[1761361858891,0.17668981,111070.0,111060.0,0.17139584]
[1761361859794,0.08781,111070.0,111060.0,0.89972564]
[1761361860195,0.07432,111070.0,111060.0,0.89972564]
[1761361860395,0.07432,111070.0,111060.0,0.77913584]
[1761361860894,0.07432,111070.0,111060.0,0.65080604]
[1761361861095,0.07432,111070.0,111060.0,0.77913584]
[1761361868497,0.1772815,111070.0,111060.0,0.77139584]
[1761361869594,0.1772815,111070.0,111060.0,0.64306604]
[1761361872496,0.1772815,111070.0,111060.0,0.95894604]
[1761361872703,0.1772815,111070.0,111060.0,0.95890604]
[1761361873390,0.1772815,111070.0,111060.0,1.08723584]
[1761361874197,0.20016371,111070.0,111060.0,1.08723584]
[1761361875000,0.20016371,111070.0,111060.0,0.95890604]
[1761361875502,0.20016371,111070.0,111060.0,1.04893584]
[1761361876302,0.20016371,111070.0,111060.0,1.17726564]
[1761361876897,0.20016371,111070.0,111060.0,0.57726564]
[1761361878605,0.20016371,111070.0,111060.0,0.48723584]
[1761361879800,0.20016371,111070.0,111060.0,1.08723584]
[1761361884213,0.20016371,111070.0,111060.0,0.64306604]
[1761361884404,0.20016371,111070.0,111060.0,0.95886604]
[1761361884705,0.20016371,111070.0,111060.0,1.08719584]
[1761361888715,0.32859706,111070.0,111060.0,1.21573274]
[1761361889912,0.20016371,111070.0,111060.0,1.21573274]
[1761361890213,0.32859706,111070.0,111060.0,1.21573274]
[1761361891113,0.20016371,111070.0,111060.0,1.21573274]
[1761361891517,0.20039406,111070.0,111060.0,1.21573274]
[1761361894610,0.32882741,111070.0,111060.0,0.89993274]
[1761361894816,0.32882741,111070.0,111060.0,1.21569274]
[1761361896922,0.32882741,111070.0,111060.0,1.30572224]
[1761361899022,0.32882741,111070.0,111060.0,1.17728889]
[1761361899625,0.32883413,111070.0,111060.0,1.17728889]
[1761361899918,0.20040078,111070.0,111060.0,1.17728889]
[1761361900114,0.20040078,111070.0,111060.0,1.17528889]
[1761361900725,0.20140078,111070.0,111060.0,1.17528889]
[1761361900923,0.20140078,111070.0,111060.0,1.30372224]
[1761361902525,0.20140078,111070.0,111060.0,1.31146224]
[1761361902823,0.18846078,111070.0,111060.0,1.31146224]
[1761361914431,0.18846078,111070.0,111060.0,1.31146344]
[1761361914731,0.20169078,111070.0,111060.0,1.30372344]
[1761361928051,0.20169078,111070.0,111060.0,1.31146344]
[1761361934050,0.14434388,111070.0,111060.0,1.31146344]
[1761361936444,0.16674388,111070.0,111060.0,1.31146344]
[1761361936856,0.16674388,111070.0,111060.0,0.71146344]
[1761361938161,0.18940388,111070.0,111060.0,0.71146344]
[1761361939562,0.09937928,111070.0,111060.0,0.71146344]
[1761361939858,0.09937928,111070.0,111060.0,1.31146344]
[1761361941552,0.18940438,111070.0,111060.0,1.31146344]
[1761361948661,0.18940438,111070.0,111060.0,1.18301082]
[1761361950163,0.09937928,111070.0,111060.0,1.18301082]
[1761361952766,0.18940308,111070.0,111060.0,1.18301082]
[1761361961774,0.07671928,111070.0,111060.0,1.18301082]
[1761361961977,0.16674308,111070.0,111060.0,1.3114249]
[1761361962669,0.16674308,111070.0,111060.0,1.18301082]
[1761361962875,0.18807308,111070.0,111060.0,1.18301082]
[1761361964076,0.09804928,111070.0,111060.0,1.18301082]
[1761361965672,0.07671928,111070.0,111060.0,1.18301082]
[1761361966774,0.09804928,111070.0,111060.0,1.18301082]
[1761361966972,0.07493,111070.0,111060.0,1.18301082]
[1761361967877,0.1649538,111070.0,111060.0,1.18301082]
[1761361972284,0.07493,111070.0,111060.0,1.18301082]
[1761361987694,0.08887,111070.0,111060.0,1.18301082]
[1761361987893,0.11188242,111070.0,111060.0,1.18301082]
[1761361996797,0.11188242,111070.0,111060.0,0.58301082]
[1761361997897,0.20190622,111070.0,111060.0,0.58301082]
[1761361999898,0.20190622,111070.0,111060.0,1.18301082]
[1761362007901,0.20190622,111070.0,111060.0,1.17527082]
[1761362010703,0.33034581,111070.0,111060.0,1.17529633]
[1761362011808,0.20190622,111070.0,111060.0,1.17529633]
[1761362012008,0.20190622,111070.0,111060.0,1.30373592]
[1761362013008,0.20190622,111070.0,111060.0,1.17529633]
[1761362013808,0.33034581,111070.0,111060.0,1.17529633]
[1761362014917,0.33034581,111070.0,111060.0,1.08526563]
[1761362015122,0.33034581,111070.0,111060.0,1.17529753]
[1761362016718,0.20190622,111070.0,111060.0,1.17529753]
[1761362018924,0.17170622,111070.0,111060.0,1.17529753]
[1761362019728,0.08168242,111070.0,111060.0,1.17529753]
[1761362019914,0.08168242,111070.0,111060.0,1.30373712]
[1761362021618,0.08168242,111070.0,111060.0,1.31147712]
[1761362022525,0.06774242,111070.0,111060.0,1.31147712]
[1761362025531,0.15776622,111070.0,111060.0,1.31147712]
[1761362028831,0.11403622,111070.0,111060.0,0.71147712]
[1761362031234,0.02401242,111070.0,111060.0,0.71147712]
[1761362033734,0.02401242,111070.0,111060.0,0.83991671]
[1761362034040,0.13748209,111090.0,111080.0,0.1401157]
[1761362034239,0.15806873,111090.0,111080.0,0.71255488]
[1761362035336,0.15906873,111090.0,111080.0,0.71255488]
[1761362036342,0.15806873,111090.0,111080.0,0.71255488]
[1761362036536,0.15806873,111090.0,111080.0,0.71355488]
[1761362043349,0.1351108,111090.0,111080.0,0.71355488]
[1761362054153,0.148542,111100.0,111090.0,0.1336876]
[1761362054353,0.17141218,111100.0,111090.0,0.39056678]
[1761362054749,0.17141218,111100.0,111090.0,0.26212719]
[1761362054946,0.15792218,111100.0,111090.0,0.39731678]
[1761362055556,0.15892218,111100.0,111090.0,0.39731678]
[1761362057656,0.15892218,111100.0,111090.0,0.26887719]
[1761362057859,0.15792218,111100.0,111090.0,0.39831678]
[1761362061259,0.17100218,111100.0,111090.0,0.1346876]
[1761362061454,0.17100218,111100.0,111090.0,0.26312719]
[1761362072760,0.17100218,111100.0,111090.0,0.26304842]
[1761362089681,0.17099828,111100.0,111090.0,0.26304842]
[1761362091684,0.17099828,111100.0,111090.0,0.1346876]
[1761362091880,0.17099828,111100.0,111090.0,0.26304842]
[1761362093181,0.06792018,111100.0,111090.0,0.39815924]
[1761362093486,0.04576018,111100.0,111090.0,0.39815924]
[1761362093888,0.06718018,111100.0,111090.0,0.39815924]
[1761362100489,0.06982927,111120.0,111100.0,0.1408091]
[1761362100800,0.02273519,111120.0,111110.0,0.71311264]
[1761362101093,0.08117129,111140.0,111130.0,0.1330448]
[1761362101294,0.19386907,111140.0,111130.0,0.57684562]
[1761362101590,0.16955778,111140.0,111130.0,0.57684562]
[1761362103294,0.16955778,111140.0,111130.0,0.58582678]
[1761362103478,0.17055778,111140.0,111130.0,0.58582678]
[1761362104093,0.07959108,111140.0,111130.0,0.58682678]
[1761362104689,0.16955788,111140.0,111130.0,0.58682678]
[1761362106398,0.76955788,111140.0,111130.0,0.58682678]
[1761362108196,0.76948043,111140.0,111130.0,0.58682678]
[1761362109694,0.16948043,111140.0,111130.0,0.03100116]
[1761362109885,0.29784125,111140.0,111130.0,0.001]
[1761362111499,0.29784125,111140.0,111130.0,0.00982492]
[1761362111797,0.29784125,111140.0,111130.0,0.001]
[1761362114901,0.89784125,111140.0,111130.0,0.001]
[1761362115200,0.89784125,111140.0,111130.0,0.00981594]
[1761362115391,0.9220476,111140.0,111130.0,0.00981594]
[1761362115805,0.89784125,111140.0,111130.0,0.00981594]
[1761362116000,0.9220476,111140.0,111130.0,0.00981594]
[1761362116199,0.9522476,111140.0,111130.0,0.00981594]
[1761362116894,0.3522476,111140.0,111130.0,0.00981594]
[1761362117903,0.32804125,111140.0,111130.0,0.00981594]
[1761362118306,0.19968043,111140.0,111130.0,0.05227594]
[1761362119905,0.79968043,111140.0,111130.0,0.05227594]
[1761362120506,0.19968043,111140.0,111130.0,0.05227594]
[1761362128314,0.22388678,111140.0,111130.0,0.05227594]
[1761362132415,0.22405094,111140.0,111130.0,0.05227594]
[1761362134719,0.22405094,111140.0,111130.0,0.18055976]
[1761362134912,0.35233476,111140.0,111130.0,0.05227594]
[1761362135108,0.38475274,111140.0,111130.0,0.00981594]
[1761362135814,0.38475274,111140.0,111130.0,0.13809976]
[1761362136014,0.38475274,111140.0,111130.0,0.15956976]
[1761362137318,0.38475274,111140.0,111130.0,0.18105976]
[1761362138323,0.25646892,111140.0,111130.0,0.18105976]
[1761362138515,0.38475274,111140.0,111130.0,0.18105976]
[1761362148018,0.25646892,111140.0,111130.0,0.18105976]
[1761362148525,0.25648998,111140.0,111130.0,0.18105976]
[1761362150226,0.224072,111140.0,111130.0,0.18105976]
[1761362156530,0.25648998,111140.0,111130.0,0.18105976]
[1761362158033,0.224072,111140.0,111130.0,0.18105976]
[1761362161029,0.35235582,111140.0,111130.0,0.18105976]
[1761362162535,0.224072,111140.0,111130.0,0.18105976]
[1761362162834,0.35235582,111140.0,111130.0,0.18105976]
[1761362163733,0.35235582,111140.0,111130.0,0.05277594]
[1761362163935,0.35235582,111140.0,111130.0,0.18105976]
[1761362170246,0.224072,111140.0,111130.0,0.18105976]
[1761362170445,0.35235582,111140.0,111130.0,0.18105976]
[1761362173039,0.35236538,111140.0,111130.0,0.18106932]
[1761362177150,0.35239637,111140.0,111130.0,0.18106932]
[1761362181054,0.38481435,111140.0,111130.0,0.18106932]
[1761362189758,0.35461435,111140.0,111130.0,0.18106932]
[1761362189957,0.35461435,111140.0,111130.0,0.00981594]
[1761362196663,0.35462825,111140.0,111130.0,0.00981594]
[1761362199267,0.38482825,111140.0,111130.0,0.00981594]
[1761362199964,0.25652097,111140.0,111130.0,0.00981594]
[1761362201460,0.25652097,111140.0,111130.0,0.05264594]
[1761362205769,0.25652097,111140.0,111130.0,0.18095322]
[1761362206966,0.22410299,111140.0,111130.0,0.27092792]
[1761362207867,0.19980458,111140.0,111130.0,0.27092792]
[1761362212166,0.06684778,111140.0,111130.0,0.87092792]
[1761362212369,0.02277778,111140.0,111130.0,0.27767792]
[1761362212570,0.33159556,111150.0,111140.0,0.1327965]
[1761362212771,0.35434328,111150.0,111140.0,0.57646378]
[1761362214271,0.35534328,111150.0,111140.0,0.57646378]
[1761362218574,0.35531921,111150.0,111140.0,0.57646378]
[1761362219273,0.33259556,111150.0,111140.0,0.57646378]
[1761362221877,0.33259026,111150.0,111140.0,0.57646378]
[1761362222673,0.1498785,111150.0,111140.0,0.57646378]
[1761362237790,0.17261219,111150.0,111140.0,0.57646378]
[1761362255705,0.17261219,111150.0,111140.0,0.4481565]
[1761362255907,0.17261219,111150.0,111140.0,0.57646378]
[1761362258811,0.17261219,111150.0,111140.0,0.70463788]
[1761362271718,0.17261219,111150.0,111140.0,0.4481565]
[1761362271922,0.17261219,111150.0,111140.0,0.70463788]
[1761362274226,0.17196017,111150.0,111140.0,0.70463788]
[1761362284533,0.17196017,111150.0,111140.0,0.4481565]
[1761362284733,0.17196017,111150.0,111140.0,0.70463788]
[1761362286532,0.17196017,111150.0,111140.0,0.70463828]
[1761362289939,0.17196017,111150.0,111140.0,0.61467138]
[1761362291639,0.17196017,111150.0,111140.0,0.70463838]
[1761362302740,0.17196017,111150.0,111140.0,0.71302838]
[1761362305459,0.11369219,111150.0,111140.0,0.71302838]
[1761362305758,0.15777219,111150.0,111140.0,0.71302838]
[1761362305948,0.11369219,111150.0,111140.0,0.71302838]
[1761362308560,0.13599219,111150.0,111140.0,0.71302838]
[1761362309362,0.15777219,111150.0,111140.0,0.71302838]
[1761362311666,0.13599219,111150.0,111140.0,0.71302838]
[1761362315168,0.15926219,111150.0,111140.0,0.71302838]
[1761362318970,0.17289219,111150.0,111140.0,0.71302838]
[1761362320759,0.17289219,111150.0,111140.0,0.5847899]
[1761362326780,0.17289219,111150.0,111140.0,0.456547]
[1761362326977,0.17289219,111150.0,111140.0,0.5847899]
[1761362333493,0.15926219,111150.0,111140.0,0.5847899]
[1761362335088,0.15926219,111150.0,111140.0,0.456547]
[1761362335393,0.15926219,111150.0,111140.0,0.5847899]
[1761362342290,0.17273219,111150.0,111140.0,0.4565468]
[1761362342495,0.17273219,111150.0,111140.0,0.5847897]
[1761362345501,0.15926219,111150.0,111140.0,0.5847897]
[1761362348700,0.04603369,111150.0,111140.0,0.5847897]
[1761362348906,0.001,111150.0,111140.0,0.6495668]
[1761362349204,0.04264,111170.0,111160.0,0.1415606]
[1761362349499,0.06541422,111170.0,111160.0,0.5850435]
[1761362349704,0.02277422,111170.0,111160.0,0.5850435]
[1761362350103,0.1459096,111180.0,111170.0,0.1348026]
[1761362350305,0.16866709,111180.0,111170.0,0.2630455]
[1761362354001,0.16866709,111180.0,111170.0,0.33359012]
[1761362354213,0.1459096,111180.0,111170.0,0.2630455]
[1761362354608,0.1459096,111180.0,111170.0,0.2697955]
[1761362358417,0.1459096,111180.0,111170.0,0.34175015]
[1761362359118,0.1325796,111180.0,111170.0,0.34175015]
[1761362363118,0.1460496,111180.0,111170.0,0.33500015]
[1761362366313,0.1460496,111180.0,111170.0,0.20675725]
[1761362366518,0.1460496,111180.0,111170.0,0.33500015]
[1761362366711,0.1460496,111180.0,111170.0,0.65016015]
[1761362368422,0.1460496,111180.0,111170.0,0.33500015]
[1761362368720,0.1460496,111180.0,111170.0,0.65016015]
[1761362369022,0.1460496,111180.0,111170.0,0.33500015]
[1761362369224,0.1460496,111180.0,111170.0,0.65016015]
[1761362374326,0.1460496,111180.0,111170.0,0.56021755]
[1761362374626,0.1460496,111180.0,111170.0,0.65016015]
[1761362378136,0.16876994,111180.0,111170.0,0.65016015]
[1761362380839,0.16876994,111180.0,111170.0,0.77826113]
[1761362393546,0.16876994,111180.0,111170.0,0.46310113]
[1761362393746,0.16876994,111180.0,111170.0,0.77826113]
[1761362402953,0.16876994,111180.0,111170.0,0.24498659]
[1761362403152,0.29694188,111180.0,111170.0,0.48815194]
[1761362403355,0.16876994,111180.0,111170.0,0.48815194]
[1761362405159,0.16876994,111180.0,111170.0,0.57809474]
[1761362410060,0.16876994,111180.0,111170.0,0.48815194]
[1761362412463,0.16876994,111180.0,111170.0,0.57809454]
[1761362413964,0.16876994,111180.0,111170.0,0.48815194]
[1761362414864,0.16876994,111180.0,111170.0,0.57809454]
[1761362424273,0.16876994,111180.0,111170.0,0.70626648]
[1761362425876,0.15529994,111180.0,111170.0,0.71301648]
[1761362426274,0.15538994,111180.0,111170.0,0.71301648]
[1761362432987,0.15538504,111180.0,111170.0,0.71301648]
[1761362442093,0.16825504,111180.0,111170.0,0.71301648]
[1761362442396,0.15538504,111180.0,111170.0,0.71301648]
[1761362442789,0.15538504,111180.0,111170.0,0.58483371]
[1761362453394,0.15538504,111180.0,111170.0,0.58483391]
[1761362453596,0.16825504,111180.0,111170.0,0.57808391]
[1761362453903,0.16825504,111180.0,111170.0,0.26296391]
[1761362454205,0.16825504,111180.0,111170.0,0.57808391]
[1761362455596,0.16825504,111180.0,111170.0,0.26296391]
[1761362455801,0.16825504,111180.0,111170.0,0.57808391]
[1761362464109,0.16825504,111180.0,111170.0,0.48814111]
[1761362465310,0.16825504,111180.0,111170.0,0.57808381]
[1761362467413,0.16825504,111180.0,111170.0,0.26296381]
[1761362468012,0.16825504,111180.0,111170.0,0.57808381]
[1761362468511,0.16825504,111180.0,111170.0,0.48814111]
[1761362468710,0.16825504,111180.0,111170.0,0.17302111]
[1761362468905,0.19253579,111180.0,111170.0,0.48814111]
[1761362469213,0.16825504,111180.0,111170.0,0.48814111]
[1761362476224,0.16825504,111180.0,111170.0,0.57808391]
[1761362480223,0.05708,111160.0,111130.0,0.14514552]
[1761362480424,0.1035431,111120.0,111110.0,1e-08]
[1761362480616,0.13245356,111100.0,111090.0,0.12816111]
[1761362480816,0.14601356,111100.0,111090.0,0.57256222]
[1761362481528,0.14601356,111100.0,111090.0,0.5814845]
[1761362482420,0.14601356,111100.0,111090.0,0.5824845]
[1761362482621,0.14601356,111100.0,111090.0,0.5924845]
[1761362483317,0.14601356,111100.0,111090.0,0.45632339]
[1761362483628,0.14601356,111100.0,111090.0,0.45532339]
[1761362493536,0.14601356,111100.0,111090.0,0.32716228]
[1761362495342,0.0899993,111100.0,111090.0,0.5834845]
[1761362495842,0.1332693,111100.0,111090.0,0.5834845]
[1761362496028,0.1458693,111100.0,111090.0,0.6734915]
[1761362497740,0.1245793,111100.0,111090.0,0.6734915]
[1761362499037,0.1770262,111110.0,111090.0,0.5834845]
[1761362499338,0.1770262,111110.0,111100.0,0.21816001]
[1761362499941,0.1770208,111110.0,111100.0,0.21816001]
[1761362500131,0.1770208,111110.0,111100.0,0.0899989]
[1761362500337,0.1770208,111110.0,111100.0,0.21916001]
[1761362501238,0.1780208,111110.0,111100.0,0.21916001]
[1761362501830,0.1770208,111110.0,111100.0,0.21916001]
[1761362502034,0.1780208,111110.0,111100.0,0.21916001]
[1761362504842,0.1780208,111110.0,111100.0,0.34761222]
[1761362505235,0.1478208,111110.0,111100.0,0.34761222]
[1761362506844,0.17193296,111110.0,111100.0,0.34761222]
[1761362510144,0.22859003,111110.0,111100.0,0.34761222]
[1761362511050,0.19621456,111110.0,111100.0,0.34761222]
[1761362516751,0.10622376,111110.0,111100.0,0.47591888]
[1761362517757,0.04939376,111110.0,111100.0,0.47591888]
[1761362518555,0.02511216,111110.0,111100.0,0.47591888]
[1761362520554,0.001,111110.0,111100.0,1.07591888]
[1761362520753,0.2008817,111130.0,111120.0,0.0899826]
[1761362520953,0.22419347,111130.0,111120.0,0.66275592]
[1761362521456,0.10401337,111130.0,111120.0,0.66275592]
[1761362521754,0.07973177,111130.0,111120.0,0.66275592]
[1761362521960,0.02531177,111130.0,111120.0,0.79106258]
[1761362522661,0.003,111130.0,111120.0,0.79106258]
[1761362523261,0.003,111130.0,111120.0,1.39106258]
[1761362525265,0.003,111130.0,111120.0,1.46238746]
[1761362526566,0.003,111130.0,111120.0,1.3340808]
[1761362526567,0.05904,111130.0,111120.0,1.3340808]
[1761362526769,0.05904,111130.0,111120.0,1.46238746]
[1761362527060,0.05904,111130.0,111120.0,1.3340808]
[1761362527261,0.05904,111130.0,111120.0,1.46238746]
[1761362531874,0.05904,111130.0,111120.0,1.3340808]
[1761362534270,0.05904,111130.0,111120.0,1.46238746]
[1761362534968,0.03784,111130.0,111120.0,1.46238746]
[1761362536065,0.003,111130.0,111120.0,0.86238746]
[1761362542695,0.05628,111150.0,111140.0,0.0899664]
[1761362542985,0.35559234,111160.0,111150.0,0.0899583]
[1761362543186,0.26564184,111160.0,111150.0,0.34657162]
[1761362543378,0.35559234,111160.0,111150.0,0.21826526]
[1761362544079,0.35559234,111160.0,111150.0,0.22226526]
[1761362544685,0.35559234,111160.0,111150.0,0.23112294]
[1761362545084,0.35559234,111160.0,111150.0,0.22912294]
[1761362545486,0.35659234,111160.0,111150.0,0.22912294]
[1761362546682,0.32639234,111160.0,111150.0,0.22912294]
[1761362548881,0.34870301,111160.0,111150.0,0.22912294]
[1761362553089,0.34870301,111160.0,111150.0,0.3574296]
[1761362553290,0.34870301,111160.0,111150.0,0.22912294]
[1761362553492,0.25875251,111160.0,111150.0,0.22912294]
[1761362553994,0.34870291,111160.0,111150.0,0.3574296]
[1761362554996,0.07959067,111160.0,111150.0,0.3574296]
[1761362555191,0.05728,111160.0,111150.0,0.3574296]
[1761362564699,0.05728,111160.0,111150.0,0.35719564]
[1761362569898,0.05728,111160.0,111150.0,0.67299564]
[1761362570692,0.05728,111160.0,111150.0,0.41661628]
[1761362570893,0.05728,111160.0,111150.0,0.67299564]
[1761362576006,0.1472303,111160.0,111150.0,0.67299564]
[1761362576505,0.1472303,111160.0,111150.0,0.22900576]
[1761362576806,0.1472303,111160.0,111150.0,0.54476576]
[1761362578311,0.1472303,111160.0,111150.0,0.54472576]
[1761362579509,0.1472303,111160.0,111150.0,0.22900576]
[1761362579710,0.1472303,111160.0,111150.0,0.54472576]
[1761362580896,0.1472303,111160.0,111150.0,0.22900576]
[1761362581095,0.1472303,111160.0,111150.0,0.54472576]
[1761362581307,0.1472303,111160.0,111150.0,0.22900576]
[1761362581506,0.1472303,111160.0,111150.0,0.54472576]
[1761362582402,0.1472303,111160.0,111150.0,0.22900576]
[1761362582608,0.1472303,111160.0,111150.0,0.54472576]
[1761362582804,0.1472303,111160.0,111150.0,0.45476736]
[1761362583009,0.1472303,111160.0,111150.0,0.54472576]
[1761362583605,0.1472303,111160.0,111150.0,0.22900576]
[1761362583802,0.1472303,111160.0,111150.0,0.54468576]
[1761362585106,0.1472303,111160.0,111150.0,0.22900576]
[1761362585307,0.1472303,111160.0,111150.0,0.54468576]
[1761362587011,0.16954974,111160.0,111150.0,0.54468576]
[1761362589707,0.16954974,111160.0,111150.0,0.45472736]
[1761362589911,0.16954974,111160.0,111150.0,0.54468576]
[1761362595316,0.16954974,111160.0,111150.0,0.45472736]
[1761362599419,0.16954974,111160.0,111150.0,0.54468576]
[1761362601110,0.16954974,111160.0,111150.0,0.01085768]
[1761362601311,0.19377633,111160.0,111150.0,0.32649768]
[1761362604216,0.16954974,111160.0,111150.0,0.32649768]
[1761362606124,0.76954974,111160.0,111150.0,0.32649768]
[1761362609221,0.16954974,111160.0,111150.0,0.45468736]
[1761362610920,0.16949601,111160.0,111150.0,0.45468736]
[1761362617527,0.16949601,111160.0,111150.0,0.32649768]
[1761362619127,0.32788569,111160.0,111150.0,0.002]
[1761362619326,0.1472347,111130.0,111120.0,0.15461669]
[1761362619532,0.1472347,111130.0,111120.0,0.59884637]
[1761362620244,0.1472347,111130.0,111120.0,0.53420968]
[1761362620535,0.1472347,111130.0,111120.0,0.72703605]
[1761362621036,0.1472347,111130.0,111120.0,0.73593698]
[1761362621226,0.1472347,111130.0,111120.0,0.74093698]
[1761362621623,0.1472347,111130.0,111120.0,0.74101698]
[1761362621827,0.1472347,111130.0,111120.0,0.67338029]
[1761362623239,0.1472347,111130.0,111120.0,0.54519061]
[1761362623738,0.1472347,111130.0,111120.0,0.45521061]
[1761362624738,0.1472347,111130.0,111120.0,0.54519321]
[1761362625542,0.0899745,111130.0,111120.0,0.67338289]
[1761362626028,0.1344245,111130.0,111120.0,0.67338289]
[1761362626839,0.1344245,111130.0,111120.0,0.67353645]
[1761362629741,0.1113545,111130.0,111120.0,0.67353645]
[1761362629944,0.1344245,111130.0,111120.0,0.67353645]
[1761362631843,0.1472345,111130.0,111120.0,0.67353645]
[1761362632947,0.1472345,111130.0,111120.0,0.67353635]
[1761362633344,0.1472345,111130.0,111120.0,0.58355385]
[1761362633648,0.16956315,111130.0,111120.0,0.58355385]
[1761362633845,0.16956315,111130.0,111120.0,0.67353635]
[1761362634350,0.1472345,111130.0,111120.0,0.67353635]
[1761362641453,0.05726,111130.0,111120.0,0.67353635]
[1761362641654,0.0899746,111130.0,111120.0,0.67353635]
[1761362642139,0.1122646,111130.0,111120.0,0.67353635]
[1761362642341,0.1476146,111130.0,111120.0,0.67353635]
[1761362649143,0.1476146,111130.0,111120.0,0.73817304]
[1761362649550,0.1476146,111130.0,111120.0,0.39165762]
[1761362649748,0.1476146,111130.0,111120.0,0.58335385]
[1761362650052,0.16997149,111130.0,111120.0,0.45508739]
[1761362652957,0.29823795,111130.0,111120.0,0.01090093]
[1761362653148,0.29823795,111130.0,111120.0,0.32686093]
[1761362653349,0.29823795,111130.0,111120.0,0.45512739]
[1761362655149,0.16997149,111130.0,111120.0,0.45512739]
[1761362657155,0.16997149,111130.0,111120.0,0.58339385]
[1761362657761,0.16997149,111130.0,111120.0,0.45512739]
[1761362658461,0.16997149,111130.0,111120.0,0.58339385]
[1761362664069,0.16999587,111130.0,111120.0,0.58339385]
[1761362666067,0.16999587,111130.0,111120.0,0.45512739]
[1761362666970,0.29826233,111130.0,111120.0,0.45512739]
[1761362670067,0.16999587,111130.0,111120.0,0.01090093]
[1761362670274,0.1467504,111110.0,111100.0,0.28289725]
[1761362670473,0.1467504,111110.0,111100.0,0.72704371]
[1761362671374,0.1467504,111110.0,111100.0,0.73204371]
[1761362671974,0.1467504,111110.0,111100.0,0.74111251]
[1761362672374,0.1467504,111110.0,111100.0,0.67647582]
[1761362674065,0.0129,111110.0,111100.0,0.67647582]
[1761362674271,0.0899906,111110.0,111100.0,0.67647582]
[1761362675881,0.1470406,111110.0,111100.0,0.67647582]
[1761362682091,0.27530706,111110.0,111100.0,0.20697195]
[1761362682293,0.1470406,111110.0,111100.0,0.45817526]
[1761362687900,0.1470406,111110.0,111100.0,0.3299088]
[1761362688194,0.1470406,111110.0,111100.0,0.45817526]
[1761362688788,0.1470406,111110.0,111100.0,0.45825502]
[1761362696605,0.05705,111090.0,111080.0,0.28299301]
[1761362696804,0.05705,111090.0,111080.0,0.60763252]
[1761362697497,0.1470567,111090.0,111080.0,0.60763252]
[1761362697804,0.1470567,111090.0,111080.0,0.60863252]
[1761362699205,0.1470567,111090.0,111080.0,0.61463252]
[1761362701905,0.05705,111090.0,111080.0,0.61463252]
[1761362703105,0.1470567,111090.0,111080.0,0.61463252]
[1761362703810,0.1476925,111100.0,111090.0,0.0900067]
[1761362704106,0.1476925,111100.0,111090.0,0.21835292]
[1761362705207,0.1476925,111100.0,111090.0,0.22135292]
[1761362706210,0.1476925,111100.0,111090.0,0.22235292]
[1761362706401,0.1476884,111100.0,111090.0,0.35069914]
[1761362707606,0.1476884,111100.0,111090.0,0.22235292]
[1761362709211,0.1476884,111100.0,111090.0,0.35069914]
[1761362719014,0.17006401,111100.0,111090.0,0.35069914]
[1761362719513,0.17006401,111100.0,111090.0,0.22235292]
[1761362721014,0.17006401,111100.0,111090.0,0.35069914]
[1761362727215,0.02237561,111100.0,111090.0,0.35069914]
[1761362727515,0.05769,111110.0,111100.0,0.0899984]
[1761362727706,0.05769,111110.0,111100.0,0.59891843]
[1761362728808,0.05769,111110.0,111100.0,0.59991843]
[1761362731520,0.03596,111110.0,111100.0,0.59991843]
[1761362732515,0.03596,111110.0,111100.0,0.53518462]
[1761362732717,0.1754187,111120.0,111110.0,0.0899903]
[1761362732918,0.1754187,111120.0,111110.0,0.21833652]
[1761362733926,0.1764187,111120.0,111110.0,0.21833652]
[1761362739323,0.19867477,111120.0,111110.0,0.21833652]
[1761362740732,0.1459003,111110.0,111100.0,0.0899946]
[1761362740929,0.05591,111110.0,111100.0,0.53410082]
[1761362741436,0.1459003,111110.0,111100.0,0.53410082]
[1761362741933,0.1459003,111110.0,111100.0,0.53510082]
[1761362747032,0.1459003,111110.0,111100.0,0.31672]
[1761362747337,0.1459003,111110.0,111100.0,0.44506622]
[1761362750728,0.1459003,111110.0,111100.0,0.44507319]
[1761362754643,0.1459003,111110.0,111100.0,0.44523319]
[1761362756233,0.16820773,111110.0,111100.0,0.44523319]
[1761362756433,0.1459003,111110.0,111100.0,0.44523319]
[1761362757440,0.19841055,111110.0,111100.0,0.44523319]
[1761362760136,0.32676374,111110.0,111100.0,0.44523319]
[1761362762245,0.19841055,111110.0,111100.0,0.44523319]
[1761362763546,0.1761003,111110.0,111100.0,0.44523319]
[1761362767347,0.1761003,111110.0,111100.0,0.53523189]
[1761362767348,0.1984115,111110.0,111100.0,0.53523189]
[1761362773543,0.1984115,111110.0,111100.0,0.66358508]
[1761362782364,0.1682115,111110.0,111100.0,0.66358508]
[1761362791363,0.1682115,111110.0,111100.0,0.34770508]
[1761362791566,0.1682115,111110.0,111100.0,0.66342508]
[1761362791868,0.1682115,111110.0,111100.0,0.53507189]
[1761362792166,0.1682115,111110.0,111100.0,0.66342508]
[1761362792365,0.1682115,111110.0,111100.0,0.34770508]
[1761362792568,0.1682115,111110.0,111100.0,0.53507189]
[1761362794065,0.1682115,111110.0,111100.0,0.66342508]
[1761362800176,0.1682115,111110.0,111100.0,0.57342638]
[1761362801167,0.1682115,111110.0,111100.0,0.66342508]
[1761362802972,0.1682115,111110.0,111100.0,0.4067187]
[1761362803175,0.1682115,111110.0,111100.0,0.57342638]
[1761362805975,0.1682115,111110.0,111100.0,0.66342508]
[1761362810682,0.1682115,111110.0,111100.0,0.5350601]
[1761362847301,0.1682115,111110.0,111100.0,0.2193401]
[1761362847603,0.1682115,111110.0,111100.0,0.5350201]
[1761362852608,0.1682115,111110.0,111100.0,0.31668]
[1761362852905,0.1682115,111110.0,111100.0,0.4450214]
[1761362854911,0.1682115,111110.0,111100.0,0.5350194]